[Event "*** Titled Tuesday 3|2 Blitz"]
[Site "Chess.com"]
[Date "2016.01.05"]
[Round "5"]
[White "MateusViageiro"]
[Black "GargleBlaster"]
[Result "0-1"]
[WhiteElo "2232"]
[BlackElo "2254"]
[TimeControl "180+2"]
[EndTime "12:00:30 PST"]
[Termination "GargleBlaster won on time"]

1. e4 {[%clk 0:03:01.2]} 1... e5 {[%clk 0:03:00.8]} 2. Nf3 {[%clk 0:03:02.1]}
2... Nc6 {[%clk 0:03:02.2]} 3. Bb5 {[%clk 0:03:02.7]} 3... f5 {[%clk 0:03:01.9]}
4. d3 {[%clk 0:03:02.4]} 4... fxe4 {[%clk 0:03:02.5]} 5. dxe4 {[%clk 0:03:02.9]}
5... d6 {[%clk 0:03:04.4]} 6. O-O {[%clk 0:03:02.7]} 6... Nf6 {[%clk 0:03:05.9]}
7. Bg5 {[%clk 0:03:02.3]} 7... Be7 {[%clk 0:03:07.1]} 8. Nbd2 {[%clk 0:03:02.3]}
8... O-O {[%clk 0:03:08.6]} 9. c3 {[%clk 0:03:02.3]} 9... Kh8 {[%clk 0:03:08.8]}
10. h3 {[%clk 0:02:58.7]} 10... Qe8 {[%clk 0:03:09.3]} 11. Be3 {[%clk
0:02:22.8]} 11... Nh5 {[%clk 0:02:52.2]} 12. Kh2 {[%clk 0:02:02.6]} 12... Nf4
{[%clk 0:02:46.1]} 13. Bxf4 {[%clk 0:01:52.9]} 13... Rxf4 {[%clk 0:02:35.9]} 14.
Qe2 {[%clk 0:01:49]} 14... Be6 {[%clk 0:02:05.2]} 15. Bc4 {[%clk 0:01:42.7]}
15... Bd7 {[%clk 0:01:55.2]} 16. Rh1 {[%clk 0:01:39.2]} 16... Qg6 {[%clk
0:01:48.4]} 17. Bd5 {[%clk 0:01:25.4]} 17... Raf8 {[%clk 0:01:32.2]} 18. Raf1
{[%clk 0:01:12.3]} 18... Qh5 {[%clk 0:01:22.8]} 19. Qe3 {[%clk 0:00:29.8]} 19...
b6 {[%clk 0:01:03.7]} 20. Kg1 {[%clk 0:00:28.1]} 20... Nd8 {[%clk 0:01:02.4]}
21. b4 {[%clk 0:00:20.4]} 21... Ne6 {[%clk 0:00:59.6]} 22. Bxe6 {[%clk
0:00:19.8]} 22... Bxe6 {[%clk 0:01:00.3]} 23. a3 {[%clk 0:00:20.5]} 23... h6
{[%clk 0:00:57.2]} 24. Re1 {[%clk 0:00:20.2]} 24... g5 {[%clk 0:00:56.6]} 25.
Ra1 {[%clk 0:00:18.8]} 25... Qg6 {[%clk 0:00:27]} 26. a4 {[%clk 0:00:18.1]}
26... Rg8 {[%clk 0:00:21.6]} 27. Kf1 {[%clk 0:00:18.2]} 27... Bf8 {[%clk
0:00:19.6]} 28. a5 {[%clk 0:00:16.7]} 28... h5 {[%clk 0:00:19.7]} 29. axb6
{[%clk 0:00:16.6]} 29... axb6 {[%clk 0:00:21.6]} 30. Ra7 {[%clk 0:00:17.2]}
30... Rf7 {[%clk 0:00:23.2]} 31. Ke2 {[%clk 0:00:14.6]} 31... Bh6 {[%clk
0:00:24.4]} 32. g4 {[%clk 0:00:11.7]} 32... hxg4 {[%clk 0:00:21.4]} 33. hxg4
{[%clk 0:00:12]} 33... Bxg4 {[%clk 0:00:23.1]} 34. Kd3 {[%clk 0:00:08.9]} 34...
Rh7 {[%clk 0:00:23.8]} 35. Nh2 {[%clk 0:00:08.5]} 35... Be6 {[%clk 0:00:24.8]}
36. Kc2 {[%clk 0:00:06.1]} 36... d5 {[%clk 0:00:25.7]} 37. Qd3 {[%clk
0:00:05.7]} 37... g4 {[%clk 0:00:24.1]} 38. Kb2 {[%clk 0:00:03.3]} 38... dxe4
{[%clk 0:00:24.1]} 39. Nxe4 {[%clk 0:00:02.9]} 39... Bf5 {[%clk 0:00:25.1]} 40.
Qd5 {[%clk 0:00:02.2]} 40... Bxe4 {[%clk 0:00:22.9]} 41. Qxe5+ {[%clk
0:00:03.1]} 41... Bg7 {[%clk 0:00:22.5]} 0-1

[Event "*** Titled Tuesday 3|2 Blitz"]
[Site "Chess.com"]
[Date "2016.01.05"]
[Round "5"]
[White "Boryboy"]
[Black "motivated_bishop"]
[Result "0-1"]
[WhiteElo "2486"]
[BlackElo "2302"]
[TimeControl "180+2"]
[EndTime "12:00:31 PST"]
[Termination "motivated_bishop won on time"]

1. d4 {[%clk 0:03:01.9]} 1... Nf6 {[%clk 0:02:53.6]} 2. Nf3 {[%clk 0:02:56.2]}
2... g6 {[%clk 0:02:54.7]} 3. g3 {[%clk 0:02:56.2]} 3... Bg7 {[%clk 0:02:54.8]}
4. Bg2 {[%clk 0:02:52.3]} 4... O-O {[%clk 0:02:52]} 5. O-O {[%clk 0:02:53.7]}
5... d5 {[%clk 0:02:52]} 6. c3 {[%clk 0:02:54.5]} 6... Ne4 {[%clk 0:02:49.4]} 7.
Bf4 {[%clk 0:02:54.6]} 7... Nd7 {[%clk 0:02:40.8]} 8. Qc1 {[%clk 0:02:49.5]}
8... Re8 {[%clk 0:02:28.4]} 9. Nbd2 {[%clk 0:02:48.8]} 9... c5 {[%clk
0:02:23.9]} 10. Nxe4 {[%clk 0:02:41.9]} 10... dxe4 {[%clk 0:02:24.8]} 11. Ng5
{[%clk 0:02:40.6]} 11... cxd4 {[%clk 0:02:14.4]} 12. Nxe4 {[%clk 0:02:40.8]}
12... Nf6 {[%clk 0:01:50.7]} 13. Rd1 {[%clk 0:02:22.5]} 13... Nxe4 {[%clk
0:01:39.4]} 14. Bxe4 {[%clk 0:02:24.4]} 14... Bg4 {[%clk 0:01:37.7]} 15. Bxb7
{[%clk 0:02:18.2]} 15... Bxe2 {[%clk 0:01:17]} 16. Rd2 {[%clk 0:02:02.7]} 16...
d3 {[%clk 0:01:17]} 17. Qe1 {[%clk 0:01:49.5]} 17... e5 {[%clk 0:00:47]} 18. Be3
{[%clk 0:01:38.5]} 18... Rb8 {[%clk 0:00:36]} 19. Bg2 {[%clk 0:01:37.3]} 19...
Qc7 {[%clk 0:00:21.5]} 20. Rc1 {[%clk 0:01:31.4]} 20... e4 {[%clk 0:00:20.4]}
21. Rxe2 {[%clk 0:01:25.7]} 21... dxe2 {[%clk 0:00:21.2]} 22. Qxe2 {[%clk
0:01:27.6]} 22... f5 {[%clk 0:00:19.5]} 23. Bf1 {[%clk 0:01:21.4]} 23... Red8
{[%clk 0:00:20.5]} 24. Qc2 {[%clk 0:01:22]} 24... Kh8 {[%clk 0:00:18.7]} 25. b3
{[%clk 0:01:20.2]} 25... Rbc8 {[%clk 0:00:18]} 26. Bc4 {[%clk 0:01:21.1]} 26...
a5 {[%clk 0:00:17.9]} 27. Qe2 {[%clk 0:01:21.6]} 27... a4 {[%clk 0:00:18.2]} 28.
h4 {[%clk 0:01:22.8]} 28... axb3 {[%clk 0:00:16.4]} 29. axb3 {[%clk 0:01:23.5]}
29... Ra8 {[%clk 0:00:17.6]} 30. h5 {[%clk 0:01:24.5]} 30... Qa5 {[%clk
0:00:17]} 31. hxg6 {[%clk 0:01:24.7]} 31... hxg6 {[%clk 0:00:18.2]} 32. Kg2
{[%clk 0:01:25.8]} 32... Bxc3 {[%clk 0:00:18.4]} 33. Rh1+ {[%clk 0:01:26.7]}
33... Kg7 {[%clk 0:00:19.9]} 34. Bh6+ {[%clk 0:01:26.1]} 34... Kf6 {[%clk
0:00:21.3]} 35. Qe3 {[%clk 0:01:25.5]} 35... Bd2 {[%clk 0:00:18.7]} 36. Qe2
{[%clk 0:00:58.3]} 36... Bxh6 {[%clk 0:00:19.3]} 37. Qb2+ {[%clk 0:00:58.8]}
37... Kg5 {[%clk 0:00:13.7]} 38. Qc1+ {[%clk 0:00:55.4]} 38... Qd2 {[%clk
0:00:13.4]} 39. Qg1 {[%clk 0:00:44.9]} 39... e3 {[%clk 0:00:12.2]} 40. Kh3
{[%clk 0:00:28.3]} 40... Qxf2 {[%clk 0:00:11.1]} 41. Qc1 {[%clk 0:00:29.5]}
41... Rh8 {[%clk 0:00:07.6]} 0-1

[Event "*** Titled Tuesday 3|2 Blitz"]
[Site "Chess.com"]
[Date "2016.01.05"]
[Round "5"]
[White "MinhGTrAn"]
[Black "Gabrielian_Artur"]
[Result "1-0"]
[WhiteElo "2597"]
[BlackElo "2460"]
[TimeControl "180+2"]
[EndTime "12:01:01 PST"]
[Termination "MinhGTrAn won by resignation"]

1. d4 {[%clk 0:03:01.9]} 1... Nf6 {[%clk 0:03:00.7]} 2. c4 {[%clk 0:03:03.1]}
2... c5 {[%clk 0:03:00.7]} 3. d5 {[%clk 0:03:03.5]} 3... e6 {[%clk 0:03:00.7]}
4. Nc3 {[%clk 0:03:04.4]} 4... exd5 {[%clk 0:03:02.1]} 5. cxd5 {[%clk
0:03:06.3]} 5... d6 {[%clk 0:03:03.7]} 6. e4 {[%clk 0:03:07.6]} 6... g6 {[%clk
0:03:05.3]} 7. Nf3 {[%clk 0:03:09.1]} 7... Bg7 {[%clk 0:03:06.5]} 8. Nd2 {[%clk
0:03:10.5]} 8... Nbd7 {[%clk 0:03:06.8]} 9. Be2 {[%clk 0:03:03.2]} 9... O-O
{[%clk 0:03:07.3]} 10. O-O {[%clk 0:03:04.7]} 10... Re8 {[%clk 0:03:07]} 11. Re1
{[%clk 0:03:03.9]} 11... a6 {[%clk 0:03:07.8]} 12. a4 {[%clk 0:03:04.6]} 12...
Ne5 {[%clk 0:03:05.5]} 13. h3 {[%clk 0:02:57.7]} 13... g5 {[%clk 0:03:02.8]} 14.
Nf1 {[%clk 0:02:44.3]} 14... h6 {[%clk 0:03:02.8]} 15. Ng3 {[%clk 0:02:42.8]}
15... Bd7 {[%clk 0:03:03.3]} 16. f4 {[%clk 0:02:14.6]} 16... gxf4 {[%clk
0:03:03.9]} 17. Bxf4 {[%clk 0:02:16.5]} 17... Rb8 {[%clk 0:02:42.3]} 18. Qd2
{[%clk 0:02:12.1]} 18... Kh7 {[%clk 0:02:40.8]} 19. a5 {[%clk 0:02:11.6]} 19...
Ng6 {[%clk 0:02:28.4]} 20. Bxd6 {[%clk 0:02:04.6]} 20... Rc8 {[%clk 0:02:22.3]}
21. e5 {[%clk 0:01:58.3]} 21... Ng8 {[%clk 0:02:06.2]} 22. Bd3 {[%clk
0:01:54.5]} 22... c4 {[%clk 0:02:03.9]} 23. Bc2 {[%clk 0:01:31.1]} 23... Qh4
{[%clk 0:02:03.9]} 24. Nf5 {[%clk 0:01:25]} 24... Bxf5 {[%clk 0:02:04.2]} 25.
Bxf5 {[%clk 0:01:26.9]} 25... Rcd8 {[%clk 0:02:05.6]} 26. Bc7 {[%clk 0:01:22.2]}
26... Ne7 {[%clk 0:01:53.7]} 27. Bxd8 {[%clk 0:01:20.1]} 27... Rxd8 {[%clk
0:01:54.5]} 28. Bc2 {[%clk 0:01:03.1]} 28... Kh8 {[%clk 0:01:53.5]} 29. Re4
{[%clk 0:00:55]} 29... Qh5 {[%clk 0:01:44.5]} 30. Rae1 {[%clk 0:00:50.1]} 30...
Ng8 {[%clk 0:00:59.4]} 31. Bd1 {[%clk 0:00:42.9]} 31... Qg5 {[%clk 0:00:54.6]}
32. Qxg5 {[%clk 0:00:42.5]} 32... hxg5 {[%clk 0:00:56.3]} 33. Bh5 {[%clk
0:00:41.8]} 33... Nf4 {[%clk 0:00:54.7]} 34. Bxf7 {[%clk 0:00:41.5]} 34... Nh6
{[%clk 0:00:54.5]} 35. e6 {[%clk 0:00:30.6]} 35... Nxf7 {[%clk 0:00:18.1]} 36.
exf7 {[%clk 0:00:30.3]} 36... Rf8 {[%clk 0:00:16.7]} 37. Re8 {[%clk 0:00:30.2]}
37... Nd3 {[%clk 0:00:16.6]} 38. Rxf8+ {[%clk 0:00:31]} 38... Bxf8 {[%clk
0:00:17.8]} 39. Re2 {[%clk 0:00:12.4]} 39... Kg7 {[%clk 0:00:18.7]} 40. Ne4
{[%clk 0:00:13]} 40... Nf4 {[%clk 0:00:16.5]} 41. Rd2 {[%clk 0:00:13.6]} 41...
Bb4 {[%clk 0:00:14.9]} 42. Rc2 {[%clk 0:00:13]} 42... Nxd5 {[%clk 0:00:12.1]}
43. Rxc4 {[%clk 0:00:11.8]} 43... Bxa5 {[%clk 0:00:13.2]} 44. Nxg5 {[%clk
0:00:13.1]} 44... Bb6+ {[%clk 0:00:13.4]} 45. Kh1 {[%clk 0:00:13.3]} 45... Be3
{[%clk 0:00:14.4]} 46. Rc8 {[%clk 0:00:13.4]} 1-0

[Event "*** Titled Tuesday 3|2 Blitz"]
[Site "Chess.com"]
[Date "2016.01.05"]
[Round "5"]
[White "nijat_a"]
[Black "Dlugy"]
[Result "1-0"]
[WhiteElo "2691"]
[BlackElo "2603"]
[TimeControl "180+2"]
[EndTime "12:01:09 PST"]
[Termination "nijat_a won by resignation"]

1. e4 {[%clk 0:03:01.9]} 1... c5 {[%clk 0:02:59.9]} 2. Nf3 {[%clk 0:03:02.7]}
2... d6 {[%clk 0:03:01.5]} 3. d4 {[%clk 0:03:03.2]} 3... cxd4 {[%clk 0:03:03.1]}
4. Nxd4 {[%clk 0:03:04.7]} 4... Nf6 {[%clk 0:03:04.7]} 5. Nc3 {[%clk 0:03:05.7]}
5... Nc6 {[%clk 0:03:06.4]} 6. Bg5 {[%clk 0:03:06.1]} 6... e6 {[%clk 0:03:07.9]}
7. Qd2 {[%clk 0:03:06.7]} 7... a6 {[%clk 0:03:09.5]} 8. O-O-O {[%clk 0:03:06.9]}
8... h6 {[%clk 0:03:11]} 9. Bh4 {[%clk 0:02:46.4]} 9... Nxe4 {[%clk 0:03:11.4]}
10. Qf4 {[%clk 0:02:38.6]} 10... Ng5 {[%clk 0:03:10.6]} 11. Qe3 {[%clk
0:02:26.1]} 11... Be7 {[%clk 0:03:04.8]} 12. f4 {[%clk 0:02:22.3]} 12... Nh7
{[%clk 0:03:05.6]} 13. Nxc6 {[%clk 0:02:19.5]} 13... bxc6 {[%clk 0:03:05.5]} 14.
Bxe7 {[%clk 0:02:21.4]} 14... Qxe7 {[%clk 0:03:06.4]} 15. Qd4 {[%clk 0:02:22.4]}
15... Nf6 {[%clk 0:02:39.1]} 16. Qxd6 {[%clk 0:02:23]} 16... Qxd6 {[%clk
0:02:40.8]} 17. Rxd6 {[%clk 0:02:24.7]} 17... Bd7 {[%clk 0:02:42.4]} 18. Na4
{[%clk 0:02:13.9]} 18... Ke7 {[%clk 0:02:32.2]} 19. Rd4 {[%clk 0:02:15.3]} 19...
a5 {[%clk 0:02:25.7]} 20. Nc5 {[%clk 0:02:14.8]} 20... Rhb8 {[%clk 0:02:20.8]}
21. Be2 {[%clk 0:02:09.8]} 21... Rb4 {[%clk 0:02:06.2]} 22. Rhd1 {[%clk
0:02:11.1]} 22... Be8 {[%clk 0:02:06.8]} 23. Bf3 {[%clk 0:02:06.8]} 23... Nd5
{[%clk 0:02:02]} 24. a3 {[%clk 0:02:02.9]} 24... Rb5 {[%clk 0:01:52.9]} 25. Nd3
{[%clk 0:02:03.6]} 25... Rb6 {[%clk 0:01:34.9]} 26. Ne5 {[%clk 0:02:01.6]} 26...
Rab8 {[%clk 0:01:26.4]} 27. Nc4 {[%clk 0:02:01.5]} 27... Ra6 {[%clk 0:01:23.3]}
28. f5 {[%clk 0:01:59.6]} 28... exf5 {[%clk 0:01:18.2]} 29. Bxd5 {[%clk
0:01:58.6]} 29... cxd5 {[%clk 0:01:19.5]} 30. Rxd5 {[%clk 0:02:00.5]} 30... g6
{[%clk 0:01:08.6]} 31. Rxa5 {[%clk 0:01:58.8]} 31... Rxa5 {[%clk 0:01:08.6]} 32.
Nxa5 {[%clk 0:02:00.5]} 32... f4 {[%clk 0:01:08.8]} 33. b4 {[%clk 0:02:01.5]}
33... g5 {[%clk 0:01:06.1]} 34. c4 {[%clk 0:02:02.4]} 34... f5 {[%clk 0:01:03]}
35. c5 {[%clk 0:02:03.5]} 35... Bb5 {[%clk 0:01:03]} 36. Kb2 {[%clk 0:02:04.3]}
36... g4 {[%clk 0:01:03.8]} 37. Kc3 {[%clk 0:02:03.2]} 37... f3 {[%clk
0:01:01.7]} 38. gxf3 {[%clk 0:02:05.1]} 38... gxf3 {[%clk 0:01:03.1]} 39. Nc4
{[%clk 0:02:00.6]} 39... Rg8 {[%clk 0:00:47.5]} 40. Ne3 {[%clk 0:01:50.2]} 40...
Ke6 {[%clk 0:00:41.9]} 41. a4 {[%clk 0:01:49.1]} 41... Be2 {[%clk 0:00:42.5]}
42. Rd2 {[%clk 0:01:46.3]} 42... f4 {[%clk 0:00:39.9]} 43. Nd1 {[%clk
0:01:46.7]} 43... Rg1 {[%clk 0:00:33.7]} 44. Nf2 {[%clk 0:01:46.5]} 44... Rf1
{[%clk 0:00:27]} 45. c6 {[%clk 0:01:45.4]} 45... Rc1+ {[%clk 0:00:27.3]} 46. Rc2
{[%clk 0:01:46.2]} 46... Rf1 {[%clk 0:00:18.2]} 47. Kd4 {[%clk 0:01:46.7]} 47...
Ba6 {[%clk 0:00:18.1]} 48. b5 {[%clk 0:01:46.9]} 48... Bc8 {[%clk 0:00:19.7]}
49. Ke4 {[%clk 0:01:48]} 49... Ra1 {[%clk 0:00:20.2]} 50. b6 {[%clk 0:01:43.1]}
50... Rxa4+ {[%clk 0:00:21.3]} 51. Kxf3 {[%clk 0:01:44.3]} 51... Rb4 {[%clk
0:00:22.7]} 52. b7 {[%clk 0:01:43.2]} 52... Bxb7 {[%clk 0:00:24.4]} 53. cxb7
{[%clk 0:01:45.1]} 53... Kf5 {[%clk 0:00:24.5]} 54. Rc5+ {[%clk 0:01:44]} 54...
Ke6 {[%clk 0:00:25.8]} 55. Rc6+ {[%clk 0:01:40.9]} 55... Kf5 {[%clk 0:00:26.7]}
56. Rc5+ {[%clk 0:01:38.2]} 56... Ke6 {[%clk 0:00:27.6]} 57. Nd3 {[%clk
0:01:39.8]} 57... Rxb7 {[%clk 0:00:28.6]} 58. Nxf4+ {[%clk 0:01:39.2]} 58... Kf6
{[%clk 0:00:30]} 59. Rc6+ {[%clk 0:01:40.2]} 59... Kg7 {[%clk 0:00:31]} 60. h4
{[%clk 0:01:40]} 60... Rb1 {[%clk 0:00:30.6]} 61. Kg4 {[%clk 0:01:40.9]} 61...
Rb5 {[%clk 0:00:31.2]} 62. Ne6+ {[%clk 0:01:38.7]} 62... Kh7 {[%clk 0:00:32.5]}
63. Rc7+ {[%clk 0:01:35.7]} 63... Kh8 {[%clk 0:00:31.6]} 64. Rd7 {[%clk
0:01:29.5]} 64... Re5 {[%clk 0:00:32.2]} 65. Nf4 {[%clk 0:01:27]} 65... Rb5
{[%clk 0:00:33]} 66. Nh5 {[%clk 0:01:22.2]} 66... Rb4+ {[%clk 0:00:30.3]} 67.
Kf5 {[%clk 0:01:19.5]} 67... Rxh4 {[%clk 0:00:21.5]} 68. Nf6 {[%clk 0:01:20.2]}
1-0

[Event "*** Titled Tuesday 3|2 Blitz"]
[Site "Chess.com"]
[Date "2016.01.05"]
[Round "5"]
[White "Krutoy123"]
[Black "HansCoolNiemann"]
[Result "1-0"]
[WhiteElo "2353"]
[BlackElo "2209"]
[TimeControl "180+2"]
[EndTime "12:01:27 PST"]
[Termination "Krutoy123 won by checkmate"]

1. Nf3 {[%clk 0:02:54.5]} 1... Nf6 {[%clk 0:03:00.3]} 2. g3 {[%clk 0:02:52.4]}
2... c5 {[%clk 0:02:58.6]} 3. Bg2 {[%clk 0:02:54.3]} 3... Nc6 {[%clk 0:02:59.7]}
4. O-O {[%clk 0:02:56.2]} 4... e5 {[%clk 0:03:01.1]} 5. d3 {[%clk 0:02:57.2]}
5... d5 {[%clk 0:03:01.4]} 6. Nbd2 {[%clk 0:02:58.7]} 6... Be7 {[%clk
0:03:01.8]} 7. e4 {[%clk 0:02:59.9]} 7... Be6 {[%clk 0:03:02.7]} 8. exd5 {[%clk
0:02:58.7]} 8... Nxd5 {[%clk 0:03:02.1]} 9. Re1 {[%clk 0:03:00.6]} 9... f6
{[%clk 0:03:01.1]} 10. c3 {[%clk 0:03:00.3]} 10... Bf7 {[%clk 0:02:59.6]} 11. d4
{[%clk 0:02:56.2]} 11... exd4 {[%clk 0:02:54.1]} 12. cxd4 {[%clk 0:02:58.1]}
12... cxd4 {[%clk 0:02:54.9]} 13. Nb3 {[%clk 0:02:57.4]} 13... O-O {[%clk
0:02:53.1]} 14. Nbxd4 {[%clk 0:02:57.1]} 14... Ndb4 {[%clk 0:02:52.5]} 15. a3
{[%clk 0:02:55.8]} 15... Nd5 {[%clk 0:02:45.3]} 16. Nxc6 {[%clk 0:02:54]} 16...
bxc6 {[%clk 0:02:47.2]} 17. Nd4 {[%clk 0:02:54.4]} 17... Qd7 {[%clk 0:02:46.2]}
18. Nxc6 {[%clk 0:02:52.9]} 18... Bc5 {[%clk 0:02:42.8]} 19. Na5 {[%clk
0:02:44.2]} 19... Rfe8 {[%clk 0:02:30]} 20. Bd2 {[%clk 0:02:41.4]} 20... Qf5
{[%clk 0:02:22.4]} 21. Qf3 {[%clk 0:02:30.2]} 21... Qc2 {[%clk 0:02:21]} 22.
Rec1 {[%clk 0:02:29.1]} 22... Qxd2 {[%clk 0:02:13.6]} 23. Rxc5 {[%clk
0:02:28.9]} 23... Re1+ {[%clk 0:02:12.7]} 24. Rxe1 {[%clk 0:02:28.3]} 24...
Qxe1+ {[%clk 0:02:13.1]} 25. Bf1 {[%clk 0:02:30.2]} 25... Rd8 {[%clk 0:02:13.2]}
26. Qe2 {[%clk 0:02:27.3]} 26... Qb1 {[%clk 0:02:08.8]} 27. Nc6 {[%clk
0:02:27.5]} 27... Re8 {[%clk 0:02:08.7]} 28. Qd3 {[%clk 0:02:28.3]} 28... Qa2
{[%clk 0:01:56.8]} 29. Qc4 {[%clk 0:02:27.8]} 29... Nb6 {[%clk 0:00:26.7]} 30.
Qxa2 {[%clk 0:02:25.8]} 30... Bxa2 {[%clk 0:00:28.6]} 31. Nb4 {[%clk 0:02:26]}
31... Bf7 {[%clk 0:00:26.9]} 32. Kg2 {[%clk 0:02:25.2]} 32... Re1 {[%clk
0:00:24.5]} 33. Bb5 {[%clk 0:02:23.6]} 33... a5 {[%clk 0:00:22.1]} 34. Nd3
{[%clk 0:02:23.6]} 34... Rd1 {[%clk 0:00:21.1]} 35. Nf4 {[%clk 0:02:22]} 35...
g5 {[%clk 0:00:20.6]} 36. Nd3 {[%clk 0:02:19.1]} 36... Bd5+ {[%clk 0:00:21.4]}
37. f3 {[%clk 0:02:18.4]} 37... g4 {[%clk 0:00:22.6]} 38. Kf2 {[%clk 0:02:18.6]}
38... gxf3 {[%clk 0:00:22.9]} 39. Nf4 {[%clk 0:02:19.2]} 39... Be4 {[%clk
0:00:20.9]} 40. Ke3 {[%clk 0:02:18.6]} 40... Ba8 {[%clk 0:00:19.6]} 41. Rc7
{[%clk 0:02:06.5]} 41... Re1+ {[%clk 0:00:14.2]} 42. Kf2 {[%clk 0:02:04.3]}
42... Rb1 {[%clk 0:00:15.4]} 43. Rc2 {[%clk 0:02:04.5]} 43... Be4 {[%clk
0:00:14.4]} 44. Rd2 {[%clk 0:02:03.3]} 44... Rh1 {[%clk 0:00:13.2]} 45. Ke3
{[%clk 0:02:04]} 45... Re1+ {[%clk 0:00:11]} 46. Kd4 {[%clk 0:02:02.5]} 46...
Bb7 {[%clk 0:00:08.3]} 47. Kc5 {[%clk 0:02:02.9]} 47... Nc8 {[%clk 0:00:05.9]}
48. Bc4+ {[%clk 0:02:02.5]} 48... Kf8 {[%clk 0:00:05.7]} 49. Ne6+ {[%clk
0:02:04.4]} 49... Ke7 {[%clk 0:00:06.8]} 50. Nf4 {[%clk 0:01:52.1]} 50... Re5+
{[%clk 0:00:07.6]} 51. Kd4 {[%clk 0:01:53]} 51... Nd6 {[%clk 0:00:06.9]} 52. Bd3
{[%clk 0:01:53.7]} 52... Re1 {[%clk 0:00:04.8]} 53. Rf2 {[%clk 0:01:53.2]} 53...
Re5 {[%clk 0:00:04.8]} 54. Bxh7 {[%clk 0:01:52.3]} 54... Kd7 {[%clk 0:00:05.9]}
55. Bd3 {[%clk 0:01:52.7]} 55... Ke7 {[%clk 0:00:06.9]} 56. h4 {[%clk
0:01:53.6]} 56... Ne4 {[%clk 0:00:07.5]} 57. Rxf3 {[%clk 0:01:53.1]} 57... Nd2
{[%clk 0:00:06.1]} 58. Ng6+ {[%clk 0:01:54.1]} 58... Kd6 {[%clk 0:00:05.3]} 59.
Rxf6+ {[%clk 0:01:55.4]} 59... Re6 {[%clk 0:00:06.3]} 60. Rxe6+ {[%clk
0:01:54.8]} 60... Kxe6 {[%clk 0:00:08.2]} 61. Nf4+ {[%clk 0:01:56.1]} 61... Kf7
{[%clk 0:00:08.1]} 62. Kc5 {[%clk 0:01:56.6]} 62... Nb3+ {[%clk 0:00:08.6]} 63.
Kb6 {[%clk 0:01:57.6]} 63... Bc8 {[%clk 0:00:08.9]} 64. Bc4+ {[%clk 0:01:58.9]}
64... Kf6 {[%clk 0:00:09.8]} 65. Bxb3 {[%clk 0:01:59.5]} 65... Kf5 {[%clk
0:00:11.7]} 66. Be6+ {[%clk 0:01:58.8]} 66... Bxe6 {[%clk 0:00:10.9]} 67. Nxe6
{[%clk 0:02:00.7]} 67... Kxe6 {[%clk 0:00:12.8]} 68. Kxa5 {[%clk 0:02:02.6]}
68... Kf5 {[%clk 0:00:14.7]} 69. b4 {[%clk 0:02:04.5]} 69... Kg4 {[%clk
0:00:16.1]} 70. b5 {[%clk 0:02:05.3]} 70... Kxg3 {[%clk 0:00:18]} 71. h5 {[%clk
0:02:07.2]} 71... Kh4 {[%clk 0:00:19.9]} 72. h6 {[%clk 0:02:08.6]} 72... Kg5
{[%clk 0:00:21.8]} 73. h7 {[%clk 0:02:10.5]} 73... Kf4 {[%clk 0:00:23.7]} 74.
h8=Q {[%clk 0:02:11.5]} 74... Ke4 {[%clk 0:00:25.6]} 75. Qd8 {[%clk 0:02:12.6]}
75... Kf5 {[%clk 0:00:27.5]} 76. Qe7 {[%clk 0:02:12.4]} 76... Kf4 {[%clk
0:00:28.4]} 77. Qe6 {[%clk 0:02:13.7]} 77... Kf3 {[%clk 0:00:29.8]} 78. Qe5
{[%clk 0:02:15]} 78... Kg4 {[%clk 0:00:30.8]} 79. Qf6 {[%clk 0:02:15.3]} 79...
Kg3 {[%clk 0:00:32.7]} 80. Qf5 {[%clk 0:02:15.6]} 80... Kh4 {[%clk 0:00:34.6]}
81. Qg6 {[%clk 0:02:15.8]} 81... Kh3 {[%clk 0:00:36.5]} 82. b6 {[%clk
0:02:15.6]} 82... Kh2 {[%clk 0:00:38.4]} 83. b7 {[%clk 0:02:17.1]} 83... Kh1
{[%clk 0:00:40.3]} 84. Qg7 {[%clk 0:02:17.4]} 84... Kh2 {[%clk 0:00:42.2]} 85.
b8=Q+ {[%clk 0:02:18.5]} 85... Kh3 {[%clk 0:00:43.6]} 86. Qbh8# {[%clk
0:02:20.3]} 1-0